[Event "Titled Tuesday Blitz November 07 Late 2023"]
[White "Mikaelyan, Arman"]
[Black "Remolar Gallen, Jose"]
[WhiteFideId "13304852"]
[BlackFideId "2215187"]
[WhiteElo "2860"]
[BlackElo "2520"]
[Result "0-1"]
[Round "6"]
[TimeControl "180+1"]
[Date "2023.11.07"]
[WhiteClock "0:00:00"]
[BlackClock "0:00:11"]
[Board "25"]

1. d4 {[%clk 0:03:00]}  Nf6 {[%clk 0:02:59]} 2. Nf3 {[%clk 0:03:01]}  g6 {[%clk 0:02:59]} 3. g3 {[%clk 0:03:01]}  Bg7 {[%clk 0:02:59]} 4. Bg2 {[%clk 0:03:01]}  O-O {[%clk 0:03:00]} 5. O-O {[%clk 0:03:02]}  c5 {[%clk 0:03:00]} 6. c3 {[%clk 0:03:02]}  d6 {[%clk 0:02:51]} 7. dxc5 {[%clk 0:03:01]}  dxc5 {[%clk 0:02:51]} 8. Qxd8 {[%clk 0:02:58]}  Rxd8 {[%clk 0:02:52]} 9. Be3 {[%clk 0:02:58]}  Nfd7 {[%clk 0:02:42]} 10. Nfd2 {[%clk 0:02:56]}  Nc6 {[%clk 0:02:38]} 11. Na3 {[%clk 0:02:52]}  Nb6 {[%clk 0:02:24]} 12. Rfd1 {[%clk 0:02:35]}  Na4 {[%clk 0:02:20]} 13. Ndc4 {[%clk 0:02:34]}  Be6 {[%clk 0:02:15]} 14. Bxc5 {[%clk 0:02:30]}  Nxc5 {[%clk 0:02:12]} 15. f4 {[%clk 0:01:41]}  Rxd1+ {[%clk 0:02:08]} 16. Rxd1 {[%clk 0:01:42]}  Rd8 {[%clk 0:02:08]} 17. Rc1 {[%clk 0:01:39]}  f5 {[%clk 0:01:46]} 18. b3 {[%clk 0:01:25]}  Ne4 {[%clk 0:01:42]} 19. Bxe4 {[%clk 0:01:20]}  fxe4 {[%clk 0:01:43]} 20. Kf2 {[%clk 0:01:20]}  b5 {[%clk 0:01:34]} 21. Nxb5 {[%clk 0:01:20]}  Bxc4 {[%clk 0:01:32]} 22. bxc4 {[%clk 0:01:21]}  Rd2 {[%clk 0:01:31]} 23. a4 {[%clk 0:01:08]}  Ra2 {[%clk 0:01:17]} 24. Ke3 {[%clk 0:01:02]}  Rxa4 {[%clk 0:01:16]} 25. Kxe4 {[%clk 0:01:03]}  e6 {[%clk 0:00:57]} 26. Kd3 {[%clk 0:01:01]}  Na5 {[%clk 0:00:54]} 27. Nd6 {[%clk 0:00:40]}  Bf8 {[%clk 0:00:40]} 28. Ne4 {[%clk 0:00:40]}  Nb3 {[%clk 0:00:28]} 29. Rb1 {[%clk 0:00:38]}  Nc5+ {[%clk 0:00:28]} 30. Nxc5 {[%clk 0:00:38]}  Bxc5 {[%clk 0:00:29]} 31. Rb8+ {[%clk 0:00:37]}  Kf7 {[%clk 0:00:28]} 32. Rb7+ {[%clk 0:00:37]}  Kf6 {[%clk 0:00:28]} 33. Rxh7 {[%clk 0:00:36]}  Ra1 {[%clk 0:00:27]} 34. g4 {[%clk 0:00:35]}  a5 {[%clk 0:00:24]} 35. e4 {[%clk 0:00:23]}  e5 {[%clk 0:00:23]} 36. g5+ {[%clk 0:00:24]}  Ke6 {[%clk 0:00:22]} 37. f5+ {[%clk 0:00:25]}  gxf5 {[%clk 0:00:22]} 38. Rh6+ {[%clk 0:00:26]}  Kf7 {[%clk 0:00:22]} 39. exf5 {[%clk 0:00:27]}  a4 {[%clk 0:00:16]} 40. Rh7+ {[%clk 0:00:26]}  Kg8 {[%clk 0:00:16]} 41. Rc7 {[%clk 0:00:26]}  Bf8 {[%clk 0:00:16]} 42. f6 {[%clk 0:00:23]}  Rg1 {[%clk 0:00:14]} 43. h4 {[%clk 0:00:22]}  a3 {[%clk 0:00:15]} 44. Ra7 {[%clk 0:00:22]}  Rg4 {[%clk 0:00:15]} 45. c5 {[%clk 0:00:13]}  e4+ {[%clk 0:00:13]} 46. Ke2 {[%clk 0:00:10]}  a2 {[%clk 0:00:12]} 47. Kf1 {[%clk 0:00:06]}  Bxc5 {[%clk 0:00:11]} 48. Ra8+ {[%clk 0:00:05]}  Kf7 {[%clk 0:00:11]} 49. g6+ {[%clk 0:00:02]}  Kxf6 {[%clk 0:00:10]} 50. g7 {[%clk 0:00:02]}  Kxg7 {[%clk 0:00:10]} 51. Rxa2 {[%clk 0:00:01]}  Rg1+ {[%clk 0:00:09]} 52. Ke2 {[%clk 0:00:02]}  Rg2+ {[%clk 0:00:10]} 53. Kf1 {[%clk 0:00:00]}  Rxa2 {[%clk 0:00:11]} 0-1


[Site "https://www.chess.com"]

[Event "Titled Tuesday Blitz November 07 Late 2023"]
[White "MKlose11"]
[Black "Bauman_Guy"]
[WhiteElo "2717"]
[BlackElo "2905"]
[Result "1/2-1/2"]
[Round "6"]
[TimeControl "180+1"]
[Date "2023.11.07"]
[WhiteClock "0:00:09"]
[BlackClock "0:00:20"]
[Board "27"]

1. e4 {[%clk 0:02:15]}  c5 {[%clk 0:02:59]} 2. Nc3 {[%clk 0:02:15]}  d6 {[%clk 0:02:59]} 3. g3 {[%clk 0:02:14]}  g6 {[%clk 0:02:59]} 4. d3 {[%clk 0:02:14]}  Bg7 {[%clk 0:03:00]} 5. Bg2 {[%clk 0:02:14]}  Nc6 {[%clk 0:03:01]} 6. Be3 {[%clk 0:02:14]}  Nd4 {[%clk 0:03:01]} 7. Qd2 {[%clk 0:02:14]}  Rb8 {[%clk 0:03:02]} 8. Nd1 {[%clk 0:02:15]}  b5 {[%clk 0:03:01]} 9. c3 {[%clk 0:02:13]}  Nc6 {[%clk 0:03:01]} 10. Ne2 {[%clk 0:02:14]}  b4 {[%clk 0:03:01]} 11. O-O {[%clk 0:02:13]}  Ba6 {[%clk 0:03:01]} 12. f4 {[%clk 0:02:07]}  e6 {[%clk 0:02:58]} 13. f5 {[%clk 0:01:57]}  Nf6 {[%clk 0:02:55]} 14. fxe6 {[%clk 0:01:55]}  fxe6 {[%clk 0:02:55]} 15. Nf4 {[%clk 0:01:55]}  Qe7 {[%clk 0:02:51]} 16. Bh3 {[%clk 0:01:51]}  Bc8 {[%clk 0:02:49]} 17. Nf2 {[%clk 0:01:44]}  O-O {[%clk 0:02:45]} 18. Ne2 {[%clk 0:01:42]}  e5 {[%clk 0:02:43]} 19. Bxc8 {[%clk 0:01:42]}  Rfxc8 {[%clk 0:02:41]} 20. c4 {[%clk 0:01:29]}  Qe6 {[%clk 0:02:38]} 21. Bg5 {[%clk 0:01:26]}  Rf8 {[%clk 0:02:35]} 22. Nd1 {[%clk 0:01:21]}  Nd4 {[%clk 0:02:26]} 23. Ne3 {[%clk 0:01:11]}  Qh3 {[%clk 0:01:59]} 24. Bxf6 {[%clk 0:01:02]}  Bxf6 {[%clk 0:01:43]} 25. Nxd4 {[%clk 0:01:02]}  exd4 {[%clk 0:01:40]} 26. Nd5 {[%clk 0:01:02]}  Be5 {[%clk 0:01:40]} 27. Qe2 {[%clk 0:00:57]}  h5 {[%clk 0:01:29]} 28. Rxf8+ {[%clk 0:00:50]}  Rxf8 {[%clk 0:01:29]} 29. Rf1 {[%clk 0:00:50]}  Rxf1+ {[%clk 0:01:03]} 30. Qxf1 {[%clk 0:00:51]}  Qe6 {[%clk 0:01:04]} 31. b3 {[%clk 0:00:47]}  Kg7 {[%clk 0:01:04]} 32. Qf3 {[%clk 0:00:47]}  a5 {[%clk 0:01:02]} 33. Kg2 {[%clk 0:00:46]}  Qe8 {[%clk 0:01:02]} 34. Nc7 {[%clk 0:00:39]}  Qd7 {[%clk 0:00:59]} 35. Nd5 {[%clk 0:00:38]}  Qc6 {[%clk 0:00:46]} 36. h4 {[%clk 0:00:37]}  a4 {[%clk 0:00:45]} 37. g4 {[%clk 0:00:34]}  axb3 {[%clk 0:00:42]} 38. axb3 {[%clk 0:00:33]}  Qe8 {[%clk 0:00:41]} 39. gxh5 {[%clk 0:00:32]}  gxh5 {[%clk 0:00:40]} 40. Qf5 {[%clk 0:00:32]}  Qg6+ {[%clk 0:00:34]} 41. Qxg6+ {[%clk 0:00:32]}  Kxg6 {[%clk 0:00:35]} 42. Kf3 {[%clk 0:00:28]}  Kf7 {[%clk 0:00:34]} 43. Nc7 {[%clk 0:00:26]}  Bf6 {[%clk 0:00:33]} 44. Kg3 {[%clk 0:00:24]}  Be5+ {[%clk 0:00:33]} 45. Kh3 {[%clk 0:00:24]}  Kg6 {[%clk 0:00:31]} 46. Nd5 {[%clk 0:00:24]}  Kf7 {[%clk 0:00:31]} 47. Kg2 {[%clk 0:00:21]}  Ke6 {[%clk 0:00:30]} 48. Kh3 {[%clk 0:00:20]}  Kf7 {[%clk 0:00:28]} 49. Nc7 {[%clk 0:00:20]}  Bf6 {[%clk 0:00:27]} 50. Nb5 {[%clk 0:00:18]}  Be7 {[%clk 0:00:25]} 51. Nc7 {[%clk 0:00:16]}  Kg6 {[%clk 0:00:24]} 52. Nd5 {[%clk 0:00:17]}  Bf6 {[%clk 0:00:22]} 53. Nf4+ {[%clk 0:00:15]}  Kh6 {[%clk 0:00:22]} 54. Nd5 {[%clk 0:00:11]}  Be5 {[%clk 0:00:22]} 55. Ne7 {[%clk 0:00:11]}  Kg7 {[%clk 0:00:22]} 56. Nf5+ {[%clk 0:00:12]}  Kg6 {[%clk 0:00:22]} 57. Kg2 {[%clk 0:00:12]}  Kf6 {[%clk 0:00:22]} 58. Kf3 {[%clk 0:00:13]}  Kg6 {[%clk 0:00:22]} 59. Ng3 {[%clk 0:00:11]}  Bf6 {[%clk 0:00:20]} 60. Nf5 {[%clk 0:00:11]}  Be5 {[%clk 0:00:20]} 61. Kg2 {[%clk 0:00:11]}  Bf4 {[%clk 0:00:20]} 62. Kh3 {[%clk 0:00:09]}  Be5 {[%clk 0:00:20]} 1/2-1/2


[Site "https://www.chess.com"]

[Event "Titled Tuesday Blitz November 07 Late 2023"]
[White "Salinas Herrera, Pablo"]
[Black "Skvortsov, Andrei"]
[WhiteFideId "3407128"]
[BlackFideId "24108600"]
[WhiteElo "2889"]
[BlackElo "2678"]
[Result "1-0"]
[Round "6"]
[TimeControl "180+1"]
[Date "2023.11.07"]
[WhiteClock "0:01:05"]
[BlackClock "0:00:00"]
[Board "28"]

1. d4 {[%clk 0:02:56]}  g6 {[%clk 0:02:59]} 2. e4 {[%clk 0:02:49]}  Bg7 {[%clk 0:02:59]} 3. Nf3 {[%clk 0:02:48]}  e6 {[%clk 0:02:55]} 4. h4 {[%clk 0:02:47]}  h6 {[%clk 0:02:55]} 5. Be3 {[%clk 0:02:47]}  d5 {[%clk 0:02:54]} 6. e5 {[%clk 0:02:47]}  Nd7 {[%clk 0:02:53]} 7. c3 {[%clk 0:02:46]}  c5 {[%clk 0:02:51]} 8. Nbd2 {[%clk 0:02:46]}  b6 {[%clk 0:02:51]} 9. h5 {[%clk 0:02:41]}  g5 {[%clk 0:02:51]} 10. Nh2 {[%clk 0:02:41]}  Ne7 {[%clk 0:02:51]} 11. Bd3 {[%clk 0:02:40]}  Nf5 {[%clk 0:02:51]} 12. Ng4 {[%clk 0:02:40]}  Nxe3 {[%clk 0:02:49]} 13. fxe3 {[%clk 0:02:40]}  f5 {[%clk 0:02:42]} 14. exf6 {[%clk 0:02:39]}  Nxf6 {[%clk 0:02:43]} 15. Bg6+ {[%clk 0:02:38]}  Kd7 {[%clk 0:02:39]} 16. Ne5+ {[%clk 0:02:37]}  Kc7 {[%clk 0:02:37]} 17. Nf7 {[%clk 0:02:38]}  Qe7 {[%clk 0:02:35]} 18. Nxh8 {[%clk 0:02:38]}  Bxh8 {[%clk 0:02:36]} 19. O-O {[%clk 0:02:39]}  Ba6 {[%clk 0:02:32]} 20. Rf2 {[%clk 0:02:38]}  Rf8 {[%clk 0:02:31]} 21. Qa4 {[%clk 0:02:37]}  Kb7 {[%clk 0:02:27]} 22. b4 {[%clk 0:02:32]}  Ng4 {[%clk 0:02:13]} 23. Rxf8 {[%clk 0:02:31]}  Qxf8 {[%clk 0:02:13]} 24. Nf3 {[%clk 0:02:23]}  b5 {[%clk 0:01:46]} 25. Qd1 {[%clk 0:02:07]}  cxb4 {[%clk 0:01:38]} 26. cxb4 {[%clk 0:02:07]}  Qxb4 {[%clk 0:01:10]} 27. Rb1 {[%clk 0:02:06]}  Qc3 {[%clk 0:01:06]} 28. Rb3 {[%clk 0:02:05]}  Nxe3 {[%clk 0:00:57]} 29. Qb1 {[%clk 0:01:35]}  Qc4 {[%clk 0:00:13]} 30. Rxe3 {[%clk 0:01:34]}  Bxd4 {[%clk 0:00:14]} 31. Nxd4 {[%clk 0:01:35]}  Qxd4 {[%clk 0:00:15]} 32. Qd3 {[%clk 0:01:35]}  Qc5 {[%clk 0:00:04]} 33. Kh2 {[%clk 0:01:21]}  b4 {[%clk 0:00:02]} 34. Qd2 {[%clk 0:01:21]}  Qd6+ {[%clk 0:00:03]} 35. Kg1 {[%clk 0:01:18]}  Qf4 {[%clk 0:00:03]} 36. Qf2 {[%clk 0:01:14]}  Qd4 {[%clk 0:00:03]} 37. Rxe6 {[%clk 0:01:10]}  Qa1+ {[%clk 0:00:03]} 38. Re1 {[%clk 0:01:11]}  Qc3 {[%clk 0:00:03]} 39. Re7+ {[%clk 0:01:11]}  Kc6 {[%clk 0:00:03]} 40. Be8+ {[%clk 0:01:09]}  Kd6 {[%clk 0:00:02]} 41. Rd7+ {[%clk 0:01:08]}  Kc6 {[%clk 0:00:00]} 42. Rxa7+ {[%clk 0:01:05]} 1-0


[Site "https://www.chess.com"]

[Event "Titled Tuesday Blitz November 07 Late 2023"]
[White "Perske, Thore"]
[Black "mind1mover"]
[WhiteFideId "12902195"]
[WhiteElo "2650"]
[BlackElo "2838"]
[Result "0-1"]
[Round "6"]
[TimeControl "180+1"]
[Date "2023.11.07"]
[WhiteClock "0:00:33"]
[BlackClock "0:00:17"]
[Board "29"]

1. e4 {[%clk 0:02:51]}  Nc6 {[%clk 0:03:00]} 2. Nf3 {[%clk 0:02:50]}  d6 {[%clk 0:02:56]} 3. g3 {[%clk 0:02:46]}  Nf6 {[%clk 0:02:54]} 4. d3 {[%clk 0:02:46]}  e6 {[%clk 0:02:48]} 5. Bg2 {[%clk 0:02:46]}  d5 {[%clk 0:02:49]} 6. O-O {[%clk 0:02:47]}  dxe4 {[%clk 0:02:49]} 7. dxe4 {[%clk 0:02:47]}  Qxd1 {[%clk 0:02:49]} 8. Rxd1 {[%clk 0:02:48]}  Nxe4 {[%clk 0:02:49]} 9. Na3 {[%clk 0:02:44]}  Bxa3 {[%clk 0:02:46]} 10. bxa3 {[%clk 0:02:45]}  Bd7 {[%clk 0:02:21]} 11. Bb2 {[%clk 0:02:39]}  f6 {[%clk 0:01:57]} 12. Nd4 {[%clk 0:02:34]}  Nd6 {[%clk 0:01:54]} 13. Nb3 {[%clk 0:02:28]}  Rd8 {[%clk 0:01:12]} 14. Nc5 {[%clk 0:02:24]}  Bc8 {[%clk 0:01:07]} 15. Bxc6+ {[%clk 0:02:21]}  bxc6 {[%clk 0:01:07]} 16. a4 {[%clk 0:02:19]}  Kf7 {[%clk 0:01:00]} 17. f4 {[%clk 0:02:18]}  Nc4 {[%clk 0:00:58]} 18. Bc3 {[%clk 0:02:17]}  Ne3 {[%clk 0:00:54]} 19. Rdc1 {[%clk 0:02:16]}  Nd5 {[%clk 0:00:52]} 20. Ba5 {[%clk 0:02:12]}  h6 {[%clk 0:00:41]} 21. Rf1 {[%clk 0:02:02]}  Ne3 {[%clk 0:00:36]} 22. Rf2 {[%clk 0:01:58]}  Nd5 {[%clk 0:00:35]} 23. Re1 {[%clk 0:01:56]}  Nb6 {[%clk 0:00:35]} 24. Rfe2 {[%clk 0:01:47]}  Rhe8 {[%clk 0:00:34]} 25. Kf2 {[%clk 0:01:40]}  Rd5 {[%clk 0:00:34]} 26. Bb4 {[%clk 0:01:40]}  a5 {[%clk 0:00:34]} 27. c4 {[%clk 0:01:24]}  Nxc4 {[%clk 0:00:32]} 28. Rc1 {[%clk 0:01:22]}  Nb6 {[%clk 0:00:25]} 29. Bxa5 {[%clk 0:01:18]}  Nxa4 {[%clk 0:00:25]} 30. Nxa4 {[%clk 0:01:14]}  Rxa5 {[%clk 0:00:25]} 31. Nc5 {[%clk 0:01:14]}  Ba6 {[%clk 0:00:17]} 32. Rd2 {[%clk 0:01:13]}  Bc8 {[%clk 0:00:16]} 33. h4 {[%clk 0:01:12]}  e5 {[%clk 0:00:15]} 34. fxe5 {[%clk 0:01:07]}  Rxe5 {[%clk 0:00:16]} 35. Nd3 {[%clk 0:01:07]}  Rf5+ {[%clk 0:00:16]} 36. Kg2 {[%clk 0:01:06]}  Rfd5 {[%clk 0:00:15]} 37. Rxc6 {[%clk 0:00:57]}  Rd7 {[%clk 0:00:16]} 38. Kf2 {[%clk 0:00:50]}  Rad5 {[%clk 0:00:15]} 39. Ke3 {[%clk 0:00:47]}  Re7+ {[%clk 0:00:13]} 40. Kf2 {[%clk 0:00:47]}  Bf5 {[%clk 0:00:13]} 41. Rc3 {[%clk 0:00:46]}  Red7 {[%clk 0:00:12]} 42. Ke3 {[%clk 0:00:42]}  Rd4 {[%clk 0:00:09]} 43. Rd1 {[%clk 0:00:36]}  c5 {[%clk 0:00:07]} 44. Rxc5 {[%clk 0:00:31]}  Rxd3+ {[%clk 0:00:07]} 45. Rxd3 {[%clk 0:00:30]}  Bxd3 {[%clk 0:00:07]} 46. a4 {[%clk 0:00:30]}  g5 {[%clk 0:00:06]} 47. a5 {[%clk 0:00:30]}  Kg6 {[%clk 0:00:02]} 48. hxg5 {[%clk 0:00:26]}  hxg5 {[%clk 0:00:03]} 49. Kf3 {[%clk 0:00:27]}  Bf5 {[%clk 0:00:02]} 50. Ke3 {[%clk 0:00:27]}  Rd3+ {[%clk 0:00:02]} 51. Kf2 {[%clk 0:00:28]}  Ra3 {[%clk 0:00:03]} 52. Kg2 {[%clk 0:00:25]}  Ra2+ {[%clk 0:00:04]} 53. Kf3 {[%clk 0:00:25]}  Ra3+ {[%clk 0:00:05]} 54. Kf2 {[%clk 0:00:25]}  Bg4 {[%clk 0:00:04]} 55. Kg2 {[%clk 0:00:24]}  Ra2+ {[%clk 0:00:05]} 56. Kf1 {[%clk 0:00:24]}  Ra1+ {[%clk 0:00:05]} 57. Kf2 {[%clk 0:00:25]}  Ra2+ {[%clk 0:00:06]} 58. Kf1 {[%clk 0:00:25]}  Bf3 {[%clk 0:00:06]} 59. Rc3 {[%clk 0:00:19]}  g4 {[%clk 0:00:06]} 60. Rc5 {[%clk 0:00:19]}  Kf7 {[%clk 0:00:05]} 61. Ke1 {[%clk 0:00:19]}  Ke6 {[%clk 0:00:06]} 62. Kf1 {[%clk 0:00:19]}  f5 {[%clk 0:00:06]} 63. Ke1 {[%clk 0:00:18]}  f4 {[%clk 0:00:04]} 64. gxf4 {[%clk 0:00:19]}  g3 {[%clk 0:00:05]} 65. Rg5 {[%clk 0:00:19]}  g2 {[%clk 0:00:05]} 66. Rg3 {[%clk 0:00:18]}  Kf5 {[%clk 0:00:02]} 67. a6 {[%clk 0:00:16]}  Kxf4 {[%clk 0:00:02]} 68. Rg8 {[%clk 0:00:16]}  Ra1+ {[%clk 0:00:03]} 69. Kd2 {[%clk 0:00:16]}  g1=Q {[%clk 0:00:03]} 70. Rxg1 {[%clk 0:00:15]}  Rxg1 {[%clk 0:00:04]} 71. Kc3 {[%clk 0:00:16]}  Ra1 {[%clk 0:00:04]} 72. Kb4 {[%clk 0:00:17]}  Rxa6 {[%clk 0:00:05]} 73. Kc5 {[%clk 0:00:18]}  Rh6 {[%clk 0:00:06]} 74. Kd4 {[%clk 0:00:18]}  Rh5 {[%clk 0:00:06]} 75. Kc3 {[%clk 0:00:19]}  Rh4 {[%clk 0:00:07]} 76. Kd2 {[%clk 0:00:20]}  Rg4 {[%clk 0:00:08]} 77. Kc3 {[%clk 0:00:21]}  Rg3 {[%clk 0:00:09]} 78. Kd2 {[%clk 0:00:21]}  Rg2+ {[%clk 0:00:10]} 79. Kc3 {[%clk 0:00:22]}  Re2 {[%clk 0:00:10]} 80. Kd3 {[%clk 0:00:23]}  Re4 {[%clk 0:00:11]} 81. Kc3 {[%clk 0:00:24]}  Ke5 {[%clk 0:00:11]} 82. Kd3 {[%clk 0:00:24]}  Bg4 {[%clk 0:00:12]} 83. Kc3 {[%clk 0:00:25]}  Bf5 {[%clk 0:00:13]} 84. Kd3 {[%clk 0:00:26]}  Rd4+ {[%clk 0:00:13]} 85. Kc3 {[%clk 0:00:27]}  Kd5 {[%clk 0:00:13]} 86. Kb3 {[%clk 0:00:28]}  Rc4 {[%clk 0:00:14]} 87. Kb2 {[%clk 0:00:28]}  Be6 {[%clk 0:00:15]} 88. Kb3 {[%clk 0:00:29]}  Kc5 {[%clk 0:00:15]} 89. Kb2 {[%clk 0:00:30]}  Kd4 {[%clk 0:00:15]} 90. Kb3 {[%clk 0:00:31]}  Rc7+ {[%clk 0:00:16]} 91. Kb2 {[%clk 0:00:31]}  Rc8 {[%clk 0:00:16]} 92. Kb1 {[%clk 0:00:32]}  Rb8+ {[%clk 0:00:16]} 93. Kc1 {[%clk 0:00:32]}  Kd3 {[%clk 0:00:17]} 94. Kd1 {[%clk 0:00:33]}  Rb1# {[%clk 0:00:17]} 0-1


[Site "https://www.chess.com"]

[Event "Titled Tuesday Blitz November 07 Late 2023"]
[White "Rustemov, Alexander"]
[Black "Tologon tegin, Semetei"]
[WhiteFideId "4119002"]
[BlackFideId "13800574"]
[WhiteElo "2811"]
[BlackElo "2598"]
[Result "1-0"]
[Round "6"]
[TimeControl "180+1"]
[Date "2023.11.07"]
[WhiteClock "0:00:07"]
[BlackClock "0:00:00"]
[Board "30"]

1. d4 {[%clk 0:02:59]}  Nf6 {[%clk 0:02:54]} 2. c4 {[%clk 0:03:00]}  Nc6 {[%clk 0:02:54]} 3. Nf3 {[%clk 0:03:00]}  d5 {[%clk 0:02:53]} 4. cxd5 {[%clk 0:02:59]}  Nxd5 {[%clk 0:02:53]} 5. e4 {[%clk 0:02:59]}  Nb6 {[%clk 0:02:50]} 6. d5 {[%clk 0:02:56]}  Nb4 {[%clk 0:02:43]} 7. Nc3 {[%clk 0:02:56]}  Bg4 {[%clk 0:02:38]} 8. a3 {[%clk 0:02:54]}  Bxf3 {[%clk 0:02:37]} 9. gxf3 {[%clk 0:02:49]}  Na6 {[%clk 0:02:37]} 10. Bb5+ {[%clk 0:02:31]}  Nd7 {[%clk 0:02:33]} 11. Be3 {[%clk 0:02:28]}  Nb8 {[%clk 0:02:26]} 12. O-O {[%clk 0:02:26]}  c6 {[%clk 0:02:26]} 13. dxc6 {[%clk 0:02:21]}  bxc6 {[%clk 0:02:25]} 14. Ba4 {[%clk 0:02:17]}  e6 {[%clk 0:02:25]} 15. f4 {[%clk 0:02:16]}  Be7 {[%clk 0:02:24]} 16. Qf3 {[%clk 0:02:15]}  O-O {[%clk 0:02:23]} 17. Rfd1 {[%clk 0:02:16]}  Qc7 {[%clk 0:02:23]} 18. Rac1 {[%clk 0:02:14]}  Nb6 {[%clk 0:02:17]} 19. Bb3 {[%clk 0:02:09]}  N8d7 {[%clk 0:02:16]} 20. e5 {[%clk 0:02:05]}  Qb7 {[%clk 0:02:02]} 21. Bc2 {[%clk 0:01:48]}  Nd5 {[%clk 0:01:58]} 22. Na4 {[%clk 0:01:32]}  g6 {[%clk 0:01:50]} 23. Qe4 {[%clk 0:01:30]}  Rfc8 {[%clk 0:01:31]} 24. Qc4 {[%clk 0:01:19]}  N7b6 {[%clk 0:01:28]} 25. Nxb6 {[%clk 0:01:18]}  axb6 {[%clk 0:01:27]} 26. Be4 {[%clk 0:01:16]}  Bf8 {[%clk 0:01:09]} 27. Kg2 {[%clk 0:01:13]}  Bh6 {[%clk 0:01:08]} 28. Kg3 {[%clk 0:01:12]}  b5 {[%clk 0:00:55]} 29. Qe2 {[%clk 0:01:10]}  Ra4 {[%clk 0:00:54]} 30. Qf3 {[%clk 0:01:08]}  Qe7 {[%clk 0:00:37]} 31. Rc2 {[%clk 0:01:06]}  g5 {[%clk 0:00:30]} 32. Bxd5 {[%clk 0:00:59]}  gxf4+ {[%clk 0:00:29]} 33. Kg2 {[%clk 0:00:56]}  exd5 {[%clk 0:00:27]} 34. Qg4+ {[%clk 0:00:52]}  Qg5 {[%clk 0:00:27]} 35. Qxg5+ {[%clk 0:00:50]}  Bxg5 {[%clk 0:00:28]} 36. Bc5 {[%clk 0:00:31]}  Rc4 {[%clk 0:00:28]} 37. Rxc4 {[%clk 0:00:26]}  bxc4 {[%clk 0:00:28]} 38. Kf3 {[%clk 0:00:22]}  f6 {[%clk 0:00:18]} 39. e6 {[%clk 0:00:20]}  Re8 {[%clk 0:00:18]} 40. e7 {[%clk 0:00:19]}  Kf7 {[%clk 0:00:18]} 41. a4 {[%clk 0:00:19]}  f5 {[%clk 0:00:18]} 42. a5 {[%clk 0:00:14]}  Bxe7 {[%clk 0:00:17]} 43. Bxe7 {[%clk 0:00:14]}  Rxe7 {[%clk 0:00:17]} 44. Ra1 {[%clk 0:00:14]}  Ra7 {[%clk 0:00:16]} 45. Kxf4 {[%clk 0:00:14]}  Kf6 {[%clk 0:00:16]} 46. a6 {[%clk 0:00:15]}  h6 {[%clk 0:00:15]} 47. Ra5 {[%clk 0:00:14]}  Ke6 {[%clk 0:00:14]} 48. Ke3 {[%clk 0:00:13]}  Ke5 {[%clk 0:00:13]} 49. f4+ {[%clk 0:00:13]}  Kd6 {[%clk 0:00:13]} 50. Kd4 {[%clk 0:00:14]}  h5 {[%clk 0:00:13]} 51. h4 {[%clk 0:00:14]}  c5+ {[%clk 0:00:11]} 52. Rxc5 {[%clk 0:00:13]}  Rxa6 {[%clk 0:00:11]} 53. Rxd5+ {[%clk 0:00:14]}  Ke6 {[%clk 0:00:12]} 54. Re5+ {[%clk 0:00:13]}  Kf6 {[%clk 0:00:11]} 55. Kxc4 {[%clk 0:00:13]}  Ra2 {[%clk 0:00:11]} 56. Re2 {[%clk 0:00:12]}  Ra1 {[%clk 0:00:10]} 57. b4 {[%clk 0:00:12]}  Rf1 {[%clk 0:00:10]} 58. b5 {[%clk 0:00:12]}  Rxf4+ {[%clk 0:00:10]} 59. Kc5 {[%clk 0:00:12]}  Rxh4 {[%clk 0:00:09]} 60. b6 {[%clk 0:00:13]}  Rg4 {[%clk 0:00:07]} 61. Re8 {[%clk 0:00:08]}  Rg1 {[%clk 0:00:06]} 62. b7 {[%clk 0:00:05]}  Rb1 {[%clk 0:00:03]} 63. b8=Q {[%clk 0:00:05]}  Rxb8 {[%clk 0:00:04]} 64. Rxb8 {[%clk 0:00:06]}  Kg5 {[%clk 0:00:01]} 65. Kd4 {[%clk 0:00:06]}  Kg4 {[%clk 0:00:00]} 66. Ke3 {[%clk 0:00:07]} 1-0


[Site "https://www.chess.com"]

[Event "Titled Tuesday Blitz November 07 Late 2023"]
[White "Roberson, Peter T"]
[Black "Holt, Conrad"]
[WhiteFideId "412384"]
[BlackFideId "2034387"]
[WhiteElo "2590"]
[BlackElo "2807"]
[Result "1-0"]
[Round "6"]
[TimeControl "180+1"]
[Date "2023.11.07"]
[WhiteClock "0:00:02"]
[BlackClock "0:00:00"]
[Board "32"]

1. e4 {[%clk 0:03:00]}  e6 {[%clk 0:03:00]} 2. d4 {[%clk 0:02:57]}  d5 {[%clk 0:03:00]} 3. exd5 {[%clk 0:02:55]}  exd5 {[%clk 0:03:00]} 4. h3 {[%clk 0:02:55]}  Bd6 {[%clk 0:02:57]} 5. Nf3 {[%clk 0:02:54]}  Nf6 {[%clk 0:02:54]} 6. Bd3 {[%clk 0:02:54]}  O-O {[%clk 0:02:52]} 7. O-O {[%clk 0:02:54]}  Nbd7 {[%clk 0:02:47]} 8. Re1 {[%clk 0:02:54]}  c5 {[%clk 0:02:40]} 9. dxc5 {[%clk 0:02:53]}  Nxc5 {[%clk 0:02:40]} 10. Nc3 {[%clk 0:02:50]}  h6 {[%clk 0:02:37]} 11. Be3 {[%clk 0:02:46]}  Re8 {[%clk 0:02:34]} 12. Qd2 {[%clk 0:02:41]}  Nce4 {[%clk 0:02:30]} 13. Bxe4 {[%clk 0:02:25]}  dxe4 {[%clk 0:02:30]} 14. Rad1 {[%clk 0:02:14]}  exf3 {[%clk 0:02:28]} 15. Qxd6 {[%clk 0:02:15]}  Qxd6 {[%clk 0:02:27]} 16. Rxd6 {[%clk 0:02:15]}  Bf5 {[%clk 0:02:23]} 17. gxf3 {[%clk 0:02:05]}  Bxc2 {[%clk 0:02:15]} 18. Rc1 {[%clk 0:02:02]}  Bf5 {[%clk 0:01:59]} 19. Bxh6 {[%clk 0:01:55]}  Bxh3 {[%clk 0:01:59]} 20. Bg5 {[%clk 0:01:55]}  Nh7 {[%clk 0:01:59]} 21. Be3 {[%clk 0:01:51]}  Re5 {[%clk 0:01:46]} 22. Nd5 {[%clk 0:01:46]}  Nf8 {[%clk 0:01:26]} 23. Rc7 {[%clk 0:01:27]}  b6 {[%clk 0:01:25]} 24. Ne7+ {[%clk 0:01:20]}  Kh8 {[%clk 0:01:18]} 25. Nc6 {[%clk 0:01:21]}  Rf5 {[%clk 0:01:07]} 26. Rxa7 {[%clk 0:01:19]}  Rxa7 {[%clk 0:00:39]} 27. Nxa7 {[%clk 0:01:20]}  Ne6 {[%clk 0:00:33]} 28. Rxb6 {[%clk 0:01:00]}  Rxf3 {[%clk 0:00:30]} 29. a4 {[%clk 0:00:56]}  Rf6 {[%clk 0:00:19]} 30. a5 {[%clk 0:00:51]}  Rg6+ {[%clk 0:00:16]} 31. Kh2 {[%clk 0:00:51]}  Bf1 {[%clk 0:00:16]} 32. Nc6 {[%clk 0:00:38]}  Nc7 {[%clk 0:00:14]} 33. Nd4 {[%clk 0:00:25]}  Rg2+ {[%clk 0:00:13]} 34. Kh1 {[%clk 0:00:26]}  Rg4 {[%clk 0:00:12]} 35. b4 {[%clk 0:00:20]}  Bd3 {[%clk 0:00:09]} 36. Kh2 {[%clk 0:00:15]}  Rh4+ {[%clk 0:00:08]} 37. Kg3 {[%clk 0:00:15]}  Rh5 {[%clk 0:00:09]} 38. f3 {[%clk 0:00:11]}  Nd5 {[%clk 0:00:09]} 39. Rb8+ {[%clk 0:00:11]}  Kh7 {[%clk 0:00:09]} 40. Bd2 {[%clk 0:00:09]}  Rh1 {[%clk 0:00:09]} 41. b5 {[%clk 0:00:09]}  Rd1 {[%clk 0:00:09]} 42. Bg5 {[%clk 0:00:05]}  Rg1+ {[%clk 0:00:09]} 43. Kf2 {[%clk 0:00:02]}  Rxg5 {[%clk 0:00:08]} 44. a6 {[%clk 0:00:03]}  Rh5 {[%clk 0:00:03]} 45. a7 {[%clk 0:00:03]}  Rh2+ {[%clk 0:00:03]} 46. Kg3 {[%clk 0:00:04]}  Ra2 {[%clk 0:00:03]} 47. a8=Q {[%clk 0:00:04]}  Rxa8 {[%clk 0:00:04]} 48. Rxa8 {[%clk 0:00:05]}  Nc7 {[%clk 0:00:04]} 49. b6 {[%clk 0:00:04]}  Nxa8 {[%clk 0:00:04]} 50. b7 {[%clk 0:00:04]}  Nb6 {[%clk 0:00:04]} 51. b8=Q {[%clk 0:00:05]}  Nc4 {[%clk 0:00:05]} 52. Qa7 {[%clk 0:00:03]}  f6 {[%clk 0:00:04]} 53. f4 {[%clk 0:00:03]}  Nd6 {[%clk 0:00:04]} 54. Qd7 {[%clk 0:00:03]}  Ne4+ {[%clk 0:00:04]} 55. Kh2 {[%clk 0:00:02]}  Nc5 {[%clk 0:00:03]} 56. Qd5 {[%clk 0:00:02]}  Ne4 {[%clk 0:00:03]} 57. Nf5 {[%clk 0:00:02]}  Bc2 {[%clk 0:00:00]} 58. Qf7 {[%clk 0:00:02]} 1-0


[Site "https://www.chess.com"]